[Event "Amsterdam Chess Open 2024"]
[Site "Amsterdam"]
[Date "2024.11.03"]
[Round "5.13"]
[White "Teianu, Maxim"]
[Black "Nies, Levi"]
[Result "1/2-1/2"]
[ECO "D37"]
[WhiteElo "1878"]
[BlackElo "1859"]
[Annotator "NA RC"]
[PlyCount "166"]
[EventDate "2024.10.31"]
[EventType "swiss"]
[EventCountry "NED"]
[SourceTitle "playchess.com"]
[Source "ChessBase"]
[SourceQuality "1"]
[TimeControl "5400+30"]

1. d4 {[%emt 0:00:02]} d5 {[%emt 0:00:04]} 2. c4 {[%emt 0:00:07]} e6 {[%emt 0:00:08]} 3. Nf3 {[%emt 0:00:09]} Nf6 {[%emt 0:00:05]} 4. Nc3 {[%emt 0:00:04]} Be7 {[%emt 0:00:04]} 5. Bf4 {[%emt 0:00:06]} O-O {[%emt 0:00:07]} 6. e3 {[%emt 0:00:07]} b6 {[%emt 0:00:38]} 7. cxd5 {[%emt 0:00:37]} Nxd5 {[%emt 0:00:14]} 8. Nxd5 {[%emt 0:00:15]} Qxd5 {[%emt 0:00:16]} 9. Qc2 {[%emt 0:01:08]} Qa5+ {[%emt 0:03:31]} 10. Nd2 {[%emt 0:01:07]} c5 {[%emt 0:10:38]} 11. Bd3 {[%emt 0:02:24]} f5 {[%emt 0:00:44]} 12. O-O {[%emt 0:01:26]} Bd7 {[%emt 0:09:15]} 13. Nc4 {[%emt 0:01:09]} Qa4 {[%emt 0:00:35]} 14. b3 {[%emt 0:00:25]} Qc6 {[%emt 0:00:22]} 15. Ne5 {[%emt 0:00:29]} Qb7 {[%emt 0:01:20]} 16. dxc5 {[%emt 0:04:42]} Bxc5 {[%emt 0:05:15]} 17. Rad1 {[%emt 0:04:36]} Bc8 {[%emt 0:08:05]} 18. Be2 {[%emt 0:05:36]} Qe7 {[%emt 0:01:01]} 19. Bf3 {[%emt 0:06:05]} Bb7 {[%emt 0:00:08]} 20. Bxb7 {[%emt 0:00:11]} Qxb7 {[%emt 0:00:01]} 21. Qc4 {[%emt 0:00:09]} Qe7 {[%emt 0:03:40]} 22. Bg5 {[%emt 0:07:41]} Qxg5 {[%emt 0:00:23]} 23. Qxe6+ {[%emt 0:00:06]} Kh8 {[%emt 0:00:02]} 24. Nf7+ {[%emt 0:00:09]} Rxf7 {[%emt 0:00:04]} 25. Qxf7 {[%emt 0:00:05]} Nc6 {[%emt 0:00:03]} 26. Qb7 {[%emt 0:00:33]} Rf8 {[%emt 0:02:30]} 27. Qxc6 {[%emt 0:00:07]} f4 {[%emt 0:00:58]} 28. exf4 {[%emt 0:00:46]} Qxf4 {[%emt 0:00:13]} 29. Qf3 {[%emt 0:00:50]} Qe5 {[%emt 0:01:44]} 30. Rfe1 {[%emt 0:01:39]} Qb8 {[%emt 0:03:08]} 31. Qe4 {[%emt 0:01:32]} Bxf2+ {[%emt 0:03:42]} 32. Kh1 {[%emt 0:00:04]} Bxe1 {[%emt 0:00:20]} 33. Rxe1 {[%emt 0:00:03]} h6 {[%emt 0:01:37]} 34. Qc2 {[%emt 0:01:13]} Qc8 {[%emt 0:05:22]} 35. Qd2 {[%emt 0:00:53]} Qd8 {[%emt 0:03:03]} 36. Qe3 {[%emt 0:00:33]} Qf6 {[%emt 0:05:39]} 37. h3 {[%emt 0:01:13]} Qf2 {[%emt 0:03:41]} 38. Qxf2 {[%emt 0:00:20]} Rxf2 {[%emt 0:00:09]} 39. a4 {[%emt 0:00:14]} Rb2 {[%emt 0:00:39]} 40. Re3 {[%emt 0:00:17]} a5 {[%emt 0:03:19]} 41. Kh2 {[%emt 0:00:32]} Kg8 {[%emt 0:01:56]} 42. Rf3 {[%emt 0:00:09]} Kh7 {[%emt 0:01:13]} 43. h4 {[%emt 0:00:44]} Kg6 {[%emt 0:02:29]} 44. Kh3 {[%emt 0:00:38]} h5 {[%emt 0:06:28]} 45. Rd3 {[%emt 0:00:59]} Kf7 {[%emt 0:00:28]} 46. g4 {[%emt 0:00:30]} hxg4+ {[%emt 0:00:53]} 47. Kxg4 {[%emt 0:00:08]} Ke6 {[%emt 0:02:36]} 48. Kg5 {[%emt 0:00:33]} Rg2+ {[%emt 0:01:01]} 49. Kf4 {[%emt 0:00:18]} Rf2+ {[%emt 0:04:44]} 50. Kg5 {[%emt 0:01:16]} Rf5+ {[%emt 0:05:20]} 51. Kg4 {[%emt 0:00:41]} Rf6 {[%emt 0:01:33]} 52. h5 {[%emt 0:00:31]} Rf1 {[%emt 0:00:39]} 53. Rg3 {[%emt 0:00:33]} Rf6 {[%emt 0:01:40]} 54. Kg5 {[%emt 0:00:24]} Kd6 {[%emt 0:01:39]} 55. Rg4 {[%emt 0:00:34]} Ke6 {[%emt 0:01:16]} 56. b4 {[%emt 0:00:44]} axb4 {[%emt 0:00:42]} 57. Rxb4 {[%emt 0:00:06]} Kd5 {[%emt 0:00:28]} 58. Rb5+ {[%emt 0:00:36]} Kc4 {[%emt 0:00:53]} 59. Rf5 {[%emt 0:00:13]} Rd6 {[%emt 0:00:35]} 60. Rb5 {[%emt 0:00:54]} Re6 {[%emt 0:00:28]} 61. Rb1 {[%emt 0:00:14]} Kc5 {[%emt 0:00:31]} 62. Rf1 {[%emt 0:00:53]} Kb4 {[%emt 0:00:19]} 63. Rf4+ {[%emt 0:00:04]} Kb3 {[%emt 0:00:11]} 64. Rg4 {[%emt 0:01:01]} Rf6 {[%emt 0:00:32]} 65. Re4 {[%emt 0:00:12]} Rd6 {[%emt 0:00:13]} 66. Kf5 {[%emt 0:00:18]} Rf6+ {[%emt 0:00:27]} 67. Kg5 {[%emt 0:00:38]} Rd6 {[%emt 0:00:04]} 68. Rf4 {[%emt 0:00:35]} Rc6 {[%emt 0:00:17]} 69. Rf7 {[%emt 0:00:59]} Kxa4 {[%emt 0:00:08]} 70. Rxg7 {[%emt 0:00:03]} b5 {[%emt 0:00:10]} 71. h6 {[%emt 0:00:05]} Rc1 {[%emt 0:02:17]} 72. h7 {[%emt 0:00:25]} Rh1 {[%emt 0:00:04]} 73. Ra7+ {[%emt 0:00:04]} Kb3 {[%emt 0:00:08]} 74. Kg6 {[%emt 0:00:04]} b4 {[%emt 0:00:09]} 75. Ra5 {[%emt 0:00:19]} Rxh7 {[%emt 0:00:14]} 76. Kxh7 {[%emt 0:00:04]} Kc2 {[%emt 0:00:10]} 77. Rc5+ {[%emt 0:00:14]} Kd3 {[%emt 0:00:20]} 78. Rb5 {[%emt 0:00:04]} Kc3 {[%emt 0:00:03]} 79. Kg6 {[%emt 0:00:04]} b3 {[%emt 0:00:03]} 80. Kf5 {[%emt 0:00:10]} b2 {[%emt 0:00:10]} 81. Ke4 {[%emt 0:00:07]} Kc2 {[%emt 0:00:03]} 82. Rc5+ {[%emt 0:00:21]} Kd2 {[%emt 0:00:18]} 83. Rb5 {[%emt 0:00:22]} Kc2 {[%emt 0:00:08]} 1/2-1/2

[Event "Amsterdam Chess Open 2024"]
[Site "Amsterdam"]
[Date "2024.11.03"]
[Round "5.14"]
[White "Beijen, Mark"]
[Black "Heij, Jacco"]
[Result "1-0"]
[ECO "D85"]
[WhiteElo "1945"]
[BlackElo "1979"]
[Annotator "RC"]
[PlyCount "73"]
[EventDate "2024.10.31"]
[EventType "swiss"]
[EventCountry "NED"]
[SourceTitle "playchess.com"]
[Source "ChessBase"]
[SourceQuality "1"]
[TimeControl "5400+30"]

1. d4 {[%emt 0:00:12]} Nf6 {[%emt 0:00:04]} 2. c4 {[%emt 0:00:15]} g6 {[%emt 0:00:04]} 3. Nc3 {[%emt 0:00:23]} d5 {[%emt 0:00:08]} 4. cxd5 {[%emt 0:00:28]} Nxd5 {[%emt 0:00:05]} 5. Bd2 {[%emt 0:00:21]} Bg7 {[%emt 0:00:57]} 6. e4 {[%emt 0:00:23]} Nxc3 {[%emt 0:00:51]} 7. Bxc3 {[%emt 0:00:21]} c5 {[%emt 0:03:20]} 8. d5 {[%emt 0:00:40]} Bxc3+ {[%emt 0:00:47]} 9. bxc3 {[%emt 0:00:14]} Qa5 {[%emt 0:07:19]} 10. Qd2 {[%emt 0:00:46]} e6 {[%emt 0:05:22]} 11. c4 {[%emt 0:01:55]} Qxd2+ {[%emt 0:02:14]} 12. Kxd2 {[%emt 0:00:30]} O-O {[%emt 0:01:07]} 13. Nf3 {[%emt 0:06:08]} b5 {[%emt 0:03:14]} 14. dxe6 {[%emt 0:08:06]} b4 {[%emt 0:06:16]} 15. exf7+ {[%emt 0:06:41]} Rxf7 {[%emt 0:00:14]} 16. Bd3 {[%emt 0:07:51]} Nc6 {[%emt 0:02:18]} 17. Ke3 {[%emt 0:03:35]} a5 {[%emt 0:05:04]} 18. Ng5 {[%emt 0:00:35]} Re7 {[%emt 0:01:17]} 19. f4 {[%emt 0:00:32]} Bb7 {[%emt 0:04:16]} 20. Nf3 {[%emt 0:03:15]} a4 {[%emt 0:01:57]} 21. e5 {[%emt 0:00:45]} Na5 {[%emt 0:01:40]} 22. Rac1 {[%emt 0:02:59]} Rd8 {[%emt 0:05:18]} 23. Rhd1 {[%emt 0:16:44]} Kg7 {[%emt 0:06:37]} 24. Be2 {[%emt 0:09:38]} Rxd1 {[%emt 0:08:33]} 25. Rxd1 {[%emt 0:00:26]} Ba6 {[%emt 0:01:25]} 26. Rc1 {[%emt 0:10:25]} b3 {[%emt 0:10:07]} 27. axb3 {[%emt 0:00:04]} Nxb3 {[%emt 0:00:19]} 28. Rc2 {[%emt 0:05:57]} Bc8 {[%emt 0:01:11]} 29. Ra2 {[%emt 0:01:34]} Bd7 {[%emt 0:06:58]} 30. Bd1 {[%emt 0:01:12]} Na5 {[%emt 0:01:30]} 31. Nd2 {[%emt 0:00:36]} Bc6 {[%emt 0:03:26]} 32. Bxa4 {[%emt 0:01:17]} Bxg2 {[%emt 0:01:25]} 33. Bb5 {[%emt 0:00:49]} Nb7 {[%emt 0:02:09]} 34. Kf2 {[%emt 0:02:40]} Bh3 {[%emt 0:01:31]} 35. Ra7 {[%emt 0:00:33]} Kf7 {[%emt 0:02:04]} 36. Ne4 {[%emt 0:01:19]} h6 {[%emt 0:00:28]} 37. Rxb7 {[%emt 0:00:21]} 1-0

[Event "Amsterdam Chess Open 2024"]
[Site "Amsterdam"]
[Date "2024.11.03"]
[Round "5.15"]
[White "Ponomarev, Ivan"]
[Black "Kuijken, Felix"]
[Result "1-0"]
[ECO "E11"]
[WhiteElo "1969"]
[BlackElo "1823"]
[Annotator "RC"]
[PlyCount "53"]
[EventDate "2024.10.31"]
[EventType "swiss"]
[EventCountry "NED"]
[SourceTitle "playchess.com"]
[Source "ChessBase"]
[SourceQuality "1"]
[TimeControl "5400+30"]

1. c4 {[%emt 0:00:02]} e6 {[%emt 0:00:12]} 2. g3 {[%emt 0:00:05]} Nf6 {[%emt 0:00:23]} 3. Bg2 {[%emt 0:00:03]} d5 {[%emt 0:00:41]} 4. d4 {[%emt 0:00:05]} Bb4+ {[%emt 0:00:17]} 5. Bd2 {[%emt 0:00:24]} Be7 {[%emt 0:00:08]} 6. Nf3 {[%emt 0:00:26]} O-O {[%emt 0:00:11]} 7. Qc2 {[%emt 0:05:07]} c6 {[%emt 0:00:48]} 8. O-O {[%emt 0:00:19]} Nbd7 {[%emt 0:00:09]} 9. b3 {[%emt 0:09:20]} Ne4 {[%emt 0:04:19]} 10. Nc3 {[%emt 0:02:12]} Nxd2 {[%emt 0:02:59]} 11. Qxd2 {[%emt 0:02:51]} f5 {[%emt 0:00:23]} 12. e3 {[%emt 0:13:17]} Bf6 {[%emt 0:11:51]} 13. Rac1 {[%emt 0:06:48]} a5 {[%emt 0:07:55]} 14. Rfd1 {[%emt 0:02:02]} g5 {[%emt 0:07:48]} 15. Ne1 {[%emt 0:12:04]} g4 {[%emt 0:04:38]} 16. Nd3 {[%emt 0:01:17]} Qe8 {[%emt 0:03:59]} 17. cxd5 {[%emt 0:09:02]} exd5 {[%emt 0:00:48]} 18. Nf4 {[%emt 0:01:50]} h5 {[%emt 0:05:09]} 19. a3 {[%emt 0:04:43]} b5 {[%emt 0:06:34]} 20. Ncxd5 {[%emt 0:02:27]} cxd5 {[%emt 0:09:05]} 21. Bxd5+ {[%emt 0:00:03]} Kh7 {[%emt 0:00:32]} 22. Bxa8 {[%emt 0:00:02]} Nb6 {[%emt 0:03:17]} 23. Qxa5 {[%emt 0:08:16]} Nxa8 {[%emt 0:05:29]} 24. Qxa8 {[%emt 0:00:35]} Qd7 {[%emt 0:00:06]} 25. Qd5 {[%emt 0:03:15]} Qe7 {[%emt 0:01:44]} 26. Rxc8 {[%emt 0:02:09]} Rxc8 {[%emt 0:00:24]} 27. Qxf5+ {[%emt 0:00:02]} 1-0

[Event "Amsterdam Chess Open 2024"]
[Site "Amsterdam"]
[Date "2024.11.03"]
[Round "5.16"]
[White "Baarslag, Ed"]
[Black "Mohamedjoesoef, Rafiek"]
[Result "1/2-1/2"]
[ECO "A05"]
[WhiteElo "1993"]
[BlackElo "1916"]
[Annotator "RC"]
[PlyCount "54"]
[EventDate "2024.10.31"]
[EventType "swiss"]
[EventCountry "NED"]
[SourceTitle "playchess.com"]
[Source "ChessBase"]
[SourceQuality "1"]
[TimeControl "5400+30"]

1. Nf3 {[%emt 0:00:23]} Nf6 {[%emt 0:00:08]} 2. g3 {[%emt 0:00:07]} b6 {[%emt 0:00:32]} 3. Bg2 {[%emt 0:00:11]} Bb7 {[%emt 0:00:12]} 4. O-O {[%emt 0:00:27]} e6 {[%emt 0:00:19]} 5. c4 {[%emt 0:01:39]} Be7 {[%emt 0:01:16]} 6. b3 {[%emt 0:01:46]} O-O {[%emt 0:00:19]} 7. Bb2 {[%emt 0:00:08]} d6 {[%emt 0:07:57]} 8. Nc3 {[%emt 0:01:49]} Ne4 {[%emt 0:10:08]} 9. Qc2 {[%emt 0:04:25]} Nxc3 {[%emt 0:04:57]} 10. Bxc3 {[%emt 0:00:20]} f5 {[%emt 0:07:08]} 11. e3 {[%emt 0:07:38]} Bf6 {[%emt 0:08:20]} 12. d4 {[%emt 0:04:34]} Be4 {[%emt 0:04:28]} 13. Qe2 {[%emt 0:01:00]} Nd7 {[%emt 0:05:12]} 14. Rad1 {[%emt 0:02:24]} Qe7 {[%emt 0:04:37]} 15. Rd2 {[%emt 0:21:53]} a5 {[%emt 0:03:26]} 16. Rfd1 {[%emt 0:02:18]} Rf7 {[%emt 0:06:05]} 17. a3 {[%emt 0:06:44]} Qf8 {[%emt 0:13:46]} 18. Ba1 {[%emt 0:02:39]} g6 {[%emt 0:01:34]} 19. Ra2 {[%emt 0:03:22]} Qg7 {[%emt 0:00:36]} 20. b4 {[%emt 0:02:05]} Rff8 {[%emt 0:03:02]} 21. Bc3 {[%emt 0:01:58]} Rfb8 {[%emt 0:03:44]} 22. Qd2 {[%emt 0:06:40]} a4 {[%emt 0:04:25]} 23. b5 {[%emt 0:03:17]} Nc5 {[%emt 0:01:43]} 24. Bb4 {[%emt 0:03:14]} Nb3 {[%emt 0:04:02]} 25. Qe2 {[%emt 0:02:11]} e5 {[%emt 0:00:16]} 26. d5 {[%emt 0:04:12]} Bxf3 {[%emt 0:00:37]} 27. Bxf3 {[%emt 0:01:03]} e4 {[%emt 0:00:03]} 1/2-1/2

[Event "Amsterdam Chess Open 2024"]
[Site "Amsterdam"]
[Date "2024.11.03"]
[Round "5.17"]
[White "Ophardt, Paul"]
[Black "De Witte, Stein"]
[Result "1-0"]
[ECO "D36"]
[WhiteElo "1981"]
[BlackElo "1921"]
[Annotator "RC"]
[PlyCount "101"]
[EventDate "2024.10.31"]
[EventType "swiss"]
[EventCountry "NED"]
[SourceTitle "playchess.com"]
[Source "ChessBase"]
[SourceQuality "1"]
[TimeControl "5400+30"]

1. d4 {[%emt 0:00:17]} d5 {[%emt 0:00:06]} 2. c4 {[%emt 0:00:31]} e6 {[%emt 0:00:13]} 3. Nc3 {[%emt 0:00:08]} Nf6 {[%emt 0:00:21]} 4. cxd5 {[%emt 0:00:10]} exd5 {[%emt 0:00:06]} 5. Bg5 {[%emt 0:00:08]} c6 {[%emt 0:00:39]} 6. e3 {[%emt 0:00:13]} h6 {[%emt 0:01:00]} 7. Bh4 {[%emt 0:00:11]} Be7 {[%emt 0:00:35]} 8. Bd3 {[%emt 0:00:46]} O-O {[%emt 0:00:34]} 9. Nge2 {[%emt 0:00:25]} Re8 {[%emt 0:01:45]} 10. O-O {[%emt 0:04:32]} Nbd7 {[%emt 0:01:36]} 11. Qc2 {[%emt 0:04:42]} a5 {[%emt 0:00:36]} 12. a4 {[%emt 0:08:29]} Nh5 {[%emt 0:08:44]} 13. Bxe7 {[%emt 0:00:44]} Qxe7 {[%emt 0:00:23]} 14. Kh1 {[%emt 0:06:51]} Ndf6 {[%emt 0:10:38]} 15. Rae1 {[%emt 0:03:25]} Bd7 {[%emt 0:15:19]} 16. Ng1 {[%emt 0:10:17]} Ne4 {[%emt 0:08:42]} 17. Qe2 {[%emt 0:12:56]} g6 {[%emt 0:06:20]} 18. Nf3 {[%emt 0:06:33]} Bg4 {[%emt 0:06:09]} 19. Qc2 {[%emt 0:01:34]} Bxf3 {[%emt 0:08:43]} 20. gxf3 {[%emt 0:00:07]} Qf6 {[%emt 0:07:06]} 21. Be2 {[%emt 0:10:38]} Nd6 {[%emt 0:02:09]} 22. Rg1 {[%emt 0:01:41]} Qf5 {[%emt 0:03:28]} 23. Qd1 {[%emt 0:04:21]} Ng7 {[%emt 0:04:14]} 24. Rg2 {[%emt 0:00:59]} Re6 {[%emt 0:03:41]} 25. Reg1 {[%emt 0:06:16]} Rf6 {[%emt 0:01:19]} 26. Rg4 {[%emt 0:03:44]} Qd7 {[%emt 0:02:13]} 27. Bd3 {[%emt 0:01:56]} h5 {[%emt 0:00:28]} 28. R4g2 {[%emt 0:00:19]} Kf8 {[%emt 0:00:51]} 29. e4 {[%emt 0:00:48]} dxe4 {[%emt 0:00:52]} 30. fxe4 {[%emt 0:00:04]} Rf4 {[%emt 0:01:06]} 31. Qd2 {[%emt 0:00:40]} Rf3 {[%emt 0:01:23]} 32. Be2 {[%emt 0:01:04]} Rxc3 {[%emt 0:01:02]} 33. bxc3 {[%emt 0:00:09]} Nxe4 {[%emt 0:00:06]} 34. Qh6 {[%emt 0:02:22]} Qf5 {[%emt 0:01:33]} 35. Qh8+ {[%emt 0:02:05]} Ke7 {[%emt 0:00:05]} 36. Qxa8 {[%emt 0:00:24]} Nxf2+ {[%emt 0:00:25]} 37. Rxf2 {[%emt 0:00:03]} Qxf2 {[%emt 0:00:06]} 38. Qxb7+ {[%emt 0:00:17]} Kd6 {[%emt 0:01:07]} 39. Qb8+ {[%emt 0:00:45]} Kd7 {[%emt 0:00:12]} 40. Qa7+ {[%emt 0:00:23]} Kd6 {[%emt 0:00:20]} 41. Qc5+ {[%emt 0:00:10]} Kd7 {[%emt 0:00:26]} 42. Bf1 {[%emt 0:00:36]} Ne6 {[%emt 0:00:39]} 43. Qa7+ {[%emt 0:00:06]} Kd6 {[%emt 0:00:50]} 44. Bg2 {[%emt 0:02:18]} Nf4 {[%emt 0:00:28]} 45. Qc5+ {[%emt 0:00:08]} Kd7 {[%emt 0:00:36]} 46. Qxc6+ {[%emt 0:00:03]} Ke7 {[%emt 0:00:32]} 47. Qf3 {[%emt 0:00:10]} Qh4 {[%emt 0:01:16]} 48. Qe4+ {[%emt 0:01:31]} Kf8 {[%emt 0:00:31]} 49. d5 {[%emt 0:00:11]} f5 {[%emt 0:01:46]} 50. Qf3 {[%emt 0:01:34]} g5 {[%emt 0:00:42]} 51. Qg3 {[%emt 0:00:59]} 1-0

[Event "Amsterdam Chess Open 2024"]
[Site "Amsterdam"]
[Date "2024.11.03"]
[Round "5.18"]
[White "Verschoor, Scott"]
[Black "Sleeckx, Alexander"]
[Result "1-0"]
[ECO "E35"]
[WhiteElo "1966"]
[BlackElo "1928"]
[Annotator "RC"]
[PlyCount "105"]
[EventDate "2024.10.31"]
[EventType "swiss"]
[EventCountry "NED"]
[SourceTitle "playchess.com"]
[Source "ChessBase"]
[SourceQuality "1"]
[TimeControl "5400+30"]

1. d4 {[%emt 0:00:03]} Nf6 {[%emt 0:00:10]} 2. c4 {[%emt 0:00:03]} e6 {[%emt 0:00:06]} 3. Nc3 {[%emt 0:00:05]} Bb4 {[%emt 0:00:05]} 4. Qc2 {[%emt 0:00:04]} d5 {[%emt 0:00:10]} 5. cxd5 {[%emt 0:00:24]} exd5 {[%emt 0:00:07]} 6. Bg5 {[%emt 0:00:08]} c5 {[%emt 0:00:07]} 7. dxc5 {[%emt 0:00:10]} h6 {[%emt 0:00:06]} 8. Bh4 {[%emt 0:00:06]} g5 {[%emt 0:00:34]} 9. Bg3 {[%emt 0:00:05]} Ne4 {[%emt 0:00:41]} 10. Be5 {[%emt 0:05:54]} O-O {[%emt 0:03:41]} 11. a3 {[%emt 0:00:00]} Qa5 {[%emt 0:01:59]} 12. Rc1 {[%emt 0:00:00]} Bxc5 {[%emt 0:03:25]} 13. e3 {[%emt 0:00:00]} Nc6 {[%emt 0:02:37]} 14. Bg3 {[%emt 0:01:08]} Bf5 {[%emt 0:05:01]} 15. Bd3 {[%emt 0:01:00]} d4 {[%emt 0:10:07]} 16. Bxe4 {[%emt 0:05:16]} Bxe4 {[%emt 0:00:55]} 17. Qxe4 {[%emt 0:00:35]} dxc3 {[%emt 0:01:04]} 18. bxc3 {[%emt 0:08:39]} Bxa3 {[%emt 0:04:46]} 19. Rc2 {[%emt 0:00:11]} Qb5 {[%emt 0:04:38]} 20. Ra2 {[%emt 0:03:26]} Rfd8 {[%emt 0:04:26]} 21. Ne2 {[%emt 0:02:13]} Bf8 {[%emt 0:07:10]} 22. O-O {[%emt 0:00:46]} Qc5 {[%emt 0:02:39]} 23. h4 {[%emt 0:17:19]} Bg7 {[%emt 0:04:24]} 24. hxg5 {[%emt 0:01:06]} hxg5 {[%emt 0:00:24]} 25. Qb1 {[%emt 0:07:08]} b6 {[%emt 0:04:13]} 26. Nd4 {[%emt 0:01:24]} Na5 {[%emt 0:03:40]} 27. Rc1 {[%emt 0:04:30]} Nc4 {[%emt 0:04:33]} 28. Qa1 {[%emt 0:03:28]} a5 {[%emt 0:00:45]} 29. Rb1 {[%emt 0:01:04]} Bxd4 {[%emt 0:00:33]} 30. cxd4 {[%emt 0:00:52]} Qc6 {[%emt 0:00:26]} 31. Rc1 {[%emt 0:04:29]} b5 {[%emt 0:01:31]} 32. Qb1 {[%emt 0:00:48]} Qd5 {[%emt 0:01:26]} 33. e4 {[%emt 0:01:01]} Qd7 {[%emt 0:01:17]} 34. d5 {[%emt 0:02:17]} Rdc8 {[%emt 0:00:25]} 35. Qa1 {[%emt 0:02:54]} Ra6 {[%emt 0:03:36]} 36. Qd4 {[%emt 0:01:50]} Qe7 {[%emt 0:01:41]} 37. e5 {[%emt 0:01:04]} Qc5 {[%emt 0:01:20]} 38. Qe4 {[%emt 0:01:36]} a4 {[%emt 0:00:25]} 39. e6 {[%emt 0:00:57]} Qe7 {[%emt 0:02:34]} 40. exf7+ {[%emt 0:02:11]} Qxf7 {[%emt 0:00:32]} 41. d6 {[%emt 0:06:32]} Nxd6 {[%emt 0:02:26]} 42. Rxc8+ {[%emt 0:00:14]} Nxc8 {[%emt 0:00:02]} 43. Rd2 {[%emt 0:00:49]} Qe7 {[%emt 0:04:10]} 44. Qd5+ {[%emt 0:01:57]} Kg7 {[%emt 0:03:20]} 45. Be5+ {[%emt 0:00:24]} Kh6 {[%emt 0:01:59]} 46. Rd3 {[%emt 0:00:49]} Qe6 {[%emt 0:02:59]} 47. Rh3+ {[%emt 0:01:10]} Kg6 {[%emt 0:00:12]} 48. Qd3+ {[%emt 0:00:40]} Kf7 {[%emt 0:01:06]} 49. Rh7+ {[%emt 0:00:09]} Ke8 {[%emt 0:01:10]} 50. Rh8+ {[%emt 0:01:18]} Ke7 {[%emt 0:00:12]} 51. Qd8+ {[%emt 0:00:11]} Kf7 {[%emt 0:00:17]} 52. Qf8+ {[%emt 0:00:15]} Kg6 {[%emt 0:00:12]} 53. Rh6# {[%emt 0:00:46]} 1-0

[Event "Amsterdam Chess Open 2024"]
[Site "Amsterdam"]
[Date "2024.11.03"]
[Round "5.19"]
[White "Straat, Evert-Jan"]
[Black "Boonstra, Jasper"]
[Result "1-0"]
[ECO "D90"]
[WhiteElo "1955"]
[BlackElo "1891"]
[Annotator "RC"]
[PlyCount "85"]
[EventDate "2024.10.31"]
[EventType "swiss"]
[EventCountry "NED"]
[SourceTitle "playchess.com"]
[Source "ChessBase"]
[SourceQuality "1"]
[TimeControl "5400+30"]

1. d4 {[%emt 0:00:02]} Nf6 {[%emt 0:00:07]} 2. c4 {[%emt 0:00:09]} g6 {[%emt 0:00:09]} 3. Nc3 {[%emt 0:00:11]} d5 {[%emt 0:00:06]} 4. cxd5 {[%emt 0:00:54]} Nxd5 {[%emt 0:00:06]} 5. Bd2 {[%emt 0:01:05]} Nb6 {[%emt 0:00:44]} 6. Nf3 {[%emt 0:01:10]} Bg7 {[%emt 0:00:17]} 7. Bf4 {[%emt 0:03:47]} O-O {[%emt 0:03:00]} 8. Rc1 {[%emt 0:03:41]} c5 {[%emt 0:20:58]} 9. dxc5 {[%emt 0:13:20]} Qxd1+ {[%emt 0:09:16]} 10. Nxd1 {[%emt 0:01:29]} Nd5 {[%emt 0:01:16]} 11. Be5 {[%emt 0:10:42]} Nc6 {[%emt 0:00:41]} 12. Bxg7 {[%emt 0:00:44]} Kxg7 {[%emt 0:00:06]} 13. Nc3 {[%emt 0:05:05]} Nc7 {[%emt 0:00:47]} 14. e3 {[%emt 0:02:44]} Bg4 {[%emt 0:00:42]} 15. Be2 {[%emt 0:01:23]} Ne6 {[%emt 0:00:43]} 16. Ne4 {[%emt 0:02:09]} Bxf3 {[%emt 0:01:19]} 17. gxf3 {[%emt 0:02:51]} Rac8 {[%emt 0:00:52]} 18. a3 {[%emt 0:04:21]} f5 {[%emt 0:03:50]} 19. Nd2 {[%emt 0:01:39]} Ne5 {[%emt 0:00:21]} 20. b4 {[%emt 0:02:21]} Rfd8 {[%emt 0:04:14]} 21. Nc4 {[%emt 0:08:15]} Nd3+ {[%emt 0:07:26]} 22. Bxd3 {[%emt 0:00:07]} Rxd3 {[%emt 0:00:02]} 23. Ke2 {[%emt 0:00:37]} Rcd8 {[%emt 0:00:24]} 24. Rhd1 {[%emt 0:00:46]} Rxd1 {[%emt 0:00:10]} 25. Rxd1 {[%emt 0:00:01]} Kf6 {[%emt 0:00:13]} 26. Rxd8 {[%emt 0:07:04]} Nxd8 {[%emt 0:00:04]} 27. f4 {[%emt 0:03:28]} Ke6 {[%emt 0:00:10]} 28. Kd3 {[%emt 0:02:37]} Kd5 {[%emt 0:01:11]} 29. f3 {[%emt 0:01:48]} Ne6 {[%emt 0:01:24]} 30. Na5 {[%emt 0:01:11]} Nd8 {[%emt 0:01:30]} 31. h3 {[%emt 0:05:41]} b5 {[%emt 0:01:16]} 32. cxb6 {[%emt 0:03:23]} axb6 {[%emt 0:00:06]} 33. Nb3 {[%emt 0:01:04]} Ne6 {[%emt 0:02:40]} 34. Nd4 {[%emt 0:02:20]} Nxd4 {[%emt 0:04:21]} 35. exd4 {[%emt 0:00:03]} b5 {[%emt 0:00:07]} 36. Kc3 {[%emt 0:00:28]} e6 {[%emt 0:00:51]} 37. h4 {[%emt 0:00:36]} h6 {[%emt 0:00:10]} 38. Kb3 {[%emt 0:00:30]} Kxd4 {[%emt 0:00:06]} 39. a4 {[%emt 0:00:05]} e5 {[%emt 0:01:12]} 40. axb5 {[%emt 0:00:47]} Kd5 {[%emt 0:01:25]} 41. fxe5 {[%emt 0:00:52]} Kxe5 {[%emt 0:00:07]} 42. f4+ {[%emt 0:00:43]} Kd6 {[%emt 0:01:12]} 43. Kc4 {[%emt 0:00:09]} 1-0

[Event "Amsterdam Chess Open 2024"]
[Site "Amsterdam"]
[Date "2024.11.03"]
[Round "5.20"]
[White "Heus, Daan"]
[Black "Krylov, Philippe"]
[Result "1/2-1/2"]
[ECO "E11"]
[WhiteElo "1914"]
[BlackElo "1950"]
[Annotator "RC"]
[PlyCount "49"]
[EventDate "2024.10.31"]
[EventType "swiss"]
[EventCountry "NED"]
[SourceTitle "playchess.com"]
[Source "ChessBase"]
[SourceQuality "1"]
[TimeControl "5400+30"]

1. d4 {[%emt 0:00:03]} Nf6 {[%emt 0:00:08]} 2. c4 {[%emt 0:00:05]} e6 {[%emt 0:00:05]} 3. g3 {[%emt 0:00:05]} d5 {[%emt 0:00:14]} 4. Nf3 {[%emt 0:00:04]} Bb4+ {[%emt 0:00:28]} 5. Bd2 {[%emt 0:00:19]} Be7 {[%emt 0:00:06]} 6. Bg2 {[%emt 0:00:21]} O-O {[%emt 0:00:12]} 7. O-O {[%emt 0:00:17]} c6 {[%emt 0:00:10]} 8. Qc2 {[%emt 0:00:55]} Nbd7 {[%emt 0:00:20]} 9. Rd1 {[%emt 0:03:24]} a5 {[%emt 0:01:35]} 10. Bg5 {[%emt 0:05:21]} h6 {[%emt 0:01:10]} 11. Bxf6 {[%emt 0:01:04]} Nxf6 {[%emt 0:01:17]} 12. Nbd2 {[%emt 0:00:45]} a4 {[%emt 0:01:48]} 13. e4 {[%emt 0:03:34]} dxe4 {[%emt 0:04:51]} 14. Nxe4 {[%emt 0:01:00]} Qa5 {[%emt 0:00:37]} 15. Rac1 {[%emt 0:11:21]} Rd8 {[%emt 0:01:24]} 16. Qe2 {[%emt 0:06:25]} a3 {[%emt 0:05:37]} 17. b3 {[%emt 0:02:07]} Bd7 {[%emt 0:00:48]} 18. Ne5 {[%emt 0:13:00]} Be8 {[%emt 0:02:01]} 19. Qe3 {[%emt 0:16:43]} Rac8 {[%emt 0:17:09]} 20. h4 {[%emt 0:05:23]} Qa7 {[%emt 0:07:22]} 21. Rd3 {[%emt 0:05:22]} b5 {[%emt 0:04:09]} 22. Rcd1 {[%emt 0:02:35]} b4 {[%emt 0:06:15]} 23. Qf4 {[%emt 0:05:45]} Qc7 {[%emt 0:01:57]} 24. Qe3 {[%emt 0:03:15]} Qa7 {[%emt 0:01:59]} 25. Qf4 {[%emt 0:02:45]} 1/2-1/2